Cogmind - Beta 13 @@@ ROGUE MODE // 2024.04.17 @ 16:35:25 Player: NikedNOGsing_in_can't Result: Destroyed by IZ-YLC(R) with Subdweller Laser Performance ------------- Evolutions (0) 0 Regions Visited (2) 400 Robots Destroyed (20) 100 Value Destroyed (473) 473 Prototype IDs (0) 0 Alien Tech Used (0) 0 Bonus (0) 0 TOTAL SCORE: 973 Bonus ------- None Cogmind --------- Core Integrity 0/250 Matter 281/300 Energy 79/250 System Corruption 0% Temperature Cool (6) Movement Treading (160) Location -10/Subcaves Parts ------- > --- POWER (1) -------- Ion Engine > --- PROPULSION (2) --- Light Treads Light Treads > --- UTILITY (2) ------ Large Storage Unit Seismic Detector > --- WEAPON (2) ------- Subdweller Laser Subdweller Machine Gun > --- INVENTORY (15) --- Light Nuclear Core Light Treads Aluminum Leg Subdweller Monowheel Heat Sink Medium Storage Unit Weight Redist. System Structural Scanner Small Laser Assault Rifle Assault Rifle Heavy Assault Rifle Mining Laser Mining Claw Peak State ------------ > --- POWER ------------ Ion Engine > --- PROPULSION ------- Light Treads Light Treads > --- UTILITY ---------- Large Storage Unit Seismic Detector > --- WEAPON ----------- Subdweller Laser Subdweller Machine Gun > --- INVENTORY -------- Ion Engine Light Nuclear Core Light Treads Aluminum Leg Subdweller Monowheel Heat Sink Medium Storage Unit Weight Redist. System Structural Scanner Small Laser Assault Rifle Assault Rifle Heavy Assault Rifle Mining Laser Mining Claw [Rating: 11] Favorites ----------- Power Ion Engine Engine Ion Engine Propulsion Light Treads Treads Light Treads Utility Seismic Detector Device Seismic Detector Storage Large Storage Unit Processor Transport Network Coupler Weapon Assault Rifle Energy Gun Subdweller Laser Ballistic Gun Assault Rifle Special Weapon Mining Laser Slashing Weapon Mining Claw Build | -11 -10 -10 ------- Run | Yrd Mat Sub Slots Evolved . | . . . Power . | . . . Propulsion . | . . . Utility . | . . . Weapon . | . . . Parts Attached 26 | 7 12 7 Power 3 | 1 1 1 Engine 3 | 1 1 1 Core . | . . . Reactor . | . . . Propulsion 3 | 2 1 . Treads 3 | 2 1 . Leg . | . . . Wheel . | . . . Hover . | . . . Flight . | . . . Utility 8 | 2 6 . Device 2 | 1 1 . Storage 4 | 1 3 . Processor 2 | . 2 . Hackware . | . . . Protection . | . . . Artifact . | . . . Weapon 12 | 2 4 6 Energy Gun 1 | . . 1 Energy Cannon . | . . . Ballistic Gun 8 | 2 2 4 Ballistic Cannon . | . . . Launcher . | . . . Special Weapon 1 | . 1 . Impact Weapon . | . . . Slashing Weapon 2 | . 1 1 Piercing Weapon . | . . . Special Melee Weapon . | . . . Unidentified Prototypes . | . . . Parts Lost 2 | . 1 1 Power 1 | . . 1 Propulsion . | . . . Utility 1 | . 1 . Weapon . | . . . Highest Loss Streak 1 | . 1 1 To Critical Strikes . | . . . Average Slot Usage (%) 99 | . 99 100 Engine 14 | . 14 14 Treads 28 | . 28 28 Device 8 | . 6 14 Storage 14 | . 14 14 Processor 4 | . 5 . Ballistic Gun 22 | . 24 18 Slashing Weapon 3 | . 2 7 Naked Turns . | . . . Heaviest Build 34 | 15 30 34 Greatest Support 40 | 40 40 40 Greatest Overweight (x) . | . . . Average Overweight (x) . | . . . Largest Inventory Capacity 15 | 8 15 15 Average Capacity 11 | 7 11 15 Most Carried 15 | 7 13 15 Average Carried 10 | 3 9 14 Final Capacity 15 | 8 15 15 Final Carried 14 | 6 13 14 Class Distribution -------------------- 100% | Mutant Dominant Class ---------------- Mutant | -10/Materials Mutant | -10/Subcaves Resources | -11 -10 -10 ----------- Run | Yrd Mat Sub Matter Collected 959 | 294 535 130 Remotely . | . . . Salvage Created 829 | 88 642 99 Parts 36 | 5 27 4 Haulers Intercepted 2 | . 2 . Recyclers Shooed . | . . . Parts Field Recycled . | . . . Retrieved Matter . | . . . Parts Self-Destructed 1 | . . 1 Prevented . | . . . Kills | -11 -10 -10 ------- Run | Yrd Mat Sub Combat Hostiles Destroyed 10 | . 8 2 Guns 10 | . 8 2 Classes Destroyed 10 | 2 6 2 Worker 1 | . 1 . Builder 1 | . 1 . Tunneler 1 | 1 . . Hauler 2 | . 2 . Recycler 2 | 1 1 . Operator 1 | . 1 . Watcher 2 | . 2 . Grunt 8 | . 8 . Sentry 1 | . . 1 Subdweller 1 | . . 1 Best Kill Streak 4 | 1 4 1 Combat Bots Only 2 | . 2 1 Max Kills in Single Turn 1 | 1 1 1 Gunslinging . | . . . Exploded . | . . . Melee . | . . . Uniques/NPCs Destroyed . | . . . Combat | -11 -10 -10 -------- Run | Yrd Mat Sub Hostile Shots Fired 71 | . 46 25 Missed 20 | . 11 9 Damage Taken 839 | . 443 396 Core 261 | . 71 190 Absorbed by Shields . | . . . Core Remaining (%) 100 | 100 . . Volleys Fired 101 | 4 77 20 Largest 2 | 2 2 2 Hottest 100 | 40 100 90 Shots Fired 174 | 8 140 26 Gun 167 | 8 133 26 Cannon . | . . . Launcher . | . . . Special 7 | . 7 . Kinetic 165 | 8 133 24 Thermal 9 | . 7 2 Explosive . | . . . Electromagnetic . | . . . Robot Hit Streak 19 | 1 11 19 Robot Miss Streak 6 | 3 6 1 Penetration Max . | . . . Secondary Targets . | . . . Shots Hit Robots 106 | 3 84 19 Core Hits 39 | 3 31 5 Critical Kills . | . . . Critical Parts Destroyed 3 | . 2 1 Critical Strikes 3 | . 2 1 Destroy 3 | . 2 1 Melee Attacks 6 | . 2 4 Impact . | . . . Slashing 6 | . 2 4 Piercing . | . . . Sneak Attacks 1 | . . 1 Combat Hostiles . | . . . Follow-up Attacks . | . . . Damage Inflicted 1446 | 38 1074 334 Guns 1351 | 38 1025 288 Cannons . | . . . Explosions . | . . . Melee 46 | . . 46 Ramming 1 | . 1 . Kinetic 1331 | 38 1025 268 Thermal 68 | . 48 20 Explosive . | . . . Electromagnetic . | . . . Impact . | . . . Slashing 46 | . . 46 Piercing . | . . . Highest Corruption . | . . . Average Corruption . | . . . Corruption Purged . | . . . Corruption Blocked . | . . . Overload Shots . | . . . Overflow Damage 6 | . . 6 Projectiles . | . . . Explosions . | . . . Melee 6 | . . 6 Knockbacks . | . . . Impact . | . . . Kinetic . | . . . Secondary . | . . . Self-Inflicted Damage . | . . . Shots . | . . . Rammed 1 | . 1 . Targets Rammed 1 | . 1 . Kicked . | . . . Crushed . | . . . Highest Temperature 80 | . 80 . Average Temperature 27 | . 27 . Received Heat Transfer 312 | . 246 66 Siege Activations . | . . . Robots Corrupted . | . . . Combat Hostiles . | . . . Parts Fried . | . . . Impact Corruptions . | . . . Robots Melted . | . . . Combat Hostiles . | . . . Parts Melted . | . . . Heat Transferred 125 | . 100 25 Parts Sabotaged . | . . . Parts Stolen . | . . . Parts Stripped . | . . . Power Chain Reactions . | . . . Alert | -11 -10 -10 ------- Run | Yrd Mat Sub Peak Influence 116 | 10 116 . Initial 6 | . 6 . Average 49 | 3 52 . Maximum Alert Level . | . . . Low Security (%) 100 | 100 100 . Level 1 . | . . . Level 2 . | . . . Level 3 . | . . . Level 4 . | . . . Level 5 . | . . . High Security . | . . . Max Security . | . . . Squads Dispatched 2 | . 2 . Investigation 1 | . 1 . Extermination . | . . . Reinforcement 1 | . 1 . Assault . | . . . Garrison . | . . . Intercept . | . . . Searches Triggered . | . . . Construction Impeded . | . . . Haulers Reinforced . | . . . Active Scanning Responses . | . . . Cargo Convoy Interrupts . | . . . Stealth | -11 -10 -10 --------- Run | Yrd Mat Sub Distress Signals . | . . . Communications Jammed . | . . . Distress Signals . | . . . Times Spotted 23 | . 18 5 Peak Tracking Total 3 | . 2 3 Tactical Retreats . | . . . Traps | -11 -10 -10 ------- Run | Yrd Mat Sub Traps Triggered 1 | . . 1 Indirectly . | . . . Trap Hack Attempts . | . . . Triggered . | . . . Disarmed . | . . . Reprogrammed . | . . . Reused . | . . . Traps Extracted . | . . . Installed . | . . . Triggered . | . . . Machines | -11 -10 -10 ---------- Run | Yrd Mat Sub Machines Disabled . | . . . Max in Single Turn . | . . . Machines Repaired . | . . . Machines Dismantled . | . . . Machines Sabotaged . | . . . Overloaded Fab Kills . | . . . Hacking | -11 -10 -10 --------- Run | Yrd Mat Sub Machines Accessed 6 | . 6 . Terminals 4 | . 4 . Fabricators . | . . . Repair Stations . | . . . Recycling Units 2 | . 2 . Scanalyzers . | . . . Garrison Access . | . . . Total Hacks 12 | . 12 . Successful 7 | . 7 . Failed 5 | . 5 . Catastrophic . | . . . Database Lockouts . | . . . Manual 10 | . 10 . Terminals 8 | . 8 . Fabricators . | . . . Repair Stations . | . . . Recycling Units 4 | . 4 . Scanalyzers . | . . . Garrison Access . | . . . Terminal Hacks 2 | . 2 . Part Schematic 1 | . 1 . Branch Access Points 1 | . 1 . Fabricator Hacks . | . . . Repair Station Hacks . | . . . Recycling Unit Hacks 1 | . 1 . Retrieve Components 1 | . 1 . Scanalyzer . | . . . Garrison Access Hacks . | . . . Unauthorized Hacks 4 | . 4 . Terminals 3 | . 3 . Botnet 3 | . 3 . Fabricators . | . . . Repair Stations . | . . . Recycling Units 1 | . 1 . Reject 1 | . 1 . Scanalyzers . | . . . Garrison Access . | . . . Data Cores Recovered . | . . . Used . | . . . Hacking Detections 4 | . 4 . Full Trace Events 1 | . 1 . Feedback Events . | . . . Feedback Blocked . | . . . Robot Schematics Acquired . | . . . Robots Built . | . . . Authchips . | . . . Time . | . . . Total Robot Build Rating . | . . . Part Schematics Acquired 1 | . 1 . Parts Built . | . . . Authchips . | . . . Time . | . . . Total Part Build Rating . | . . . Parts Repaired . | . . . Time . | . . . Parts Recycled . | . . . Recycled Matter . | . . . Retrieved Matter . | . . . Retrieved Components 7 | . 7 . Parts Scanalyzed . | . . . Part Schematics Acquired . | . . . Parts Damaged . | . . . Bothacking | -11 -10 -10 ------------ Run | Yrd Mat Sub Used RIF Installer . | . . . Robots Hacked . | . . . Non-combat . | . . . Combat . | . . . Robot Hacks Applied . | . . . Relay Couplers Released . | . . . Fabnet Peak Effective % . | . . . Robots Rewired . | . . . Allies Hacked . | . . . Hacks Repelled . | . . . Allies | -11 -10 -10 -------- Run | Yrd Mat Sub Total Allies . | . . . Largest Group . | . . . Highest-Rated Group . | . . . Highest-Rated Ally . | . . . Total Orders . | . . . Ally Attacks . | . . . Total Damage . | . . . Kills . | . . . Allies Corrupted . | . . . Allies Melted . | . . . Intel | -11 -10 -10 ------- Run | Yrd Mat Sub Robot Analysis Total . | . . . Derelict Logs Recovered 3 | . . 3 Drone Launches . | . . . Drone Recoveries . | . . . Exploration | -11 -10 -10 ------------- Run | Yrd Mat Sub Turns Passed 2350 | 129 1575 646 Spaces Moved 1162 | 64 777 321 Core 1 | 1 . . Treads 1161 | 63 777 321 Legs . | . . . Wheels . | . . . Hover . | . . . Flight . | . . . Fastest Speed 50 | 50 160 160 Average Speed 159 | 158 160 160 Slowest Speed 160 | 160 160 160 Overloaded Moves . | . . . Propulsion Burnouts . | . . . Robots Hopped . | . . . Cave-ins Triggered . | . . . Exploration Rate (%) 32 | 4 74 20 Regions Visited 2 Branch Regions 1 Pre-discovered Areas 1 | . . 1 Known Exits Taken . | . . . Unknown Exits Taken 2 | 1 1 . Scrap Searched 2 | . . 2 Spaces Dug 7 | . 7 . Terrain Destroyed 7 | . 7 . Melee 2 | . 2 . Projectile 5 | . 5 . AOE . | . . . Terrain Rammed . | . . . Walls Destroyed . | . . . Machines Disabled . | . . . Actions | -11 -10 -10 --------- Run | Yrd Mat Sub Total 1446 | 81 947 418 Wait 128 | . 66 62 Move 1160 | 63 776 321 Hop . | . . . Pick Up 17 | 7 9 1 Fast Attach 8 | 6 1 1 Attach 2 | 1 . 1 Detach 1 | . . 1 Swap 16 | . 11 5 Drop 6 | . 4 2 Fire 101 | 4 77 20 Melee 6 | . 2 4 Ram . | . . . Kick . | . . . Crush 1 | . 1 . Escape Stasis . | . . . Rewire . | . . . Trap . | . . . Miscellaneous . | . . . Route ------- -11/Scrapyard -10/Materials (discovered 4 exits: [*Mat x2] / Min / [*Sub]) -10/Subcaves History --------- Turn | Location | Event 19 | -11/Scrapyard | Discovered new exit (range 16) 130 | -11/Scrapyard | Entered Materials 309 | -10/Materials | Build established: Mutant 352 | -10/Materials | Discovered new exit (range 5) 498 | -10/Materials | Discovered new exit (range 9) 857 | -10/Materials | Identified exit to Mines 1037 | -10/Materials | Discovered new exit (range 8) 1705 | -10/Materials | Entered Subcaves 1737 | -10/Subcaves | Learned location of Zion (-7) 1839 | -10/Subcaves | Learned 4 Materials zone layouts 1847 | -10/Subcaves | Learned Materials garrison access intel 1873 | -10/Subcaves | A swath of the cavern ceiling suddenly collapsed 2248 | -10/Subcaves | Core integrity fell below 50% 2348 | -10/Subcaves | Core integrity fell below 20% 2351 | -10/Subcaves | Destroyed by IZ-YLC(R) with Subdweller Laser Last Messages --------------- 01920_ Y-45 Defender destroyed. 01923_ Acquired 20 matter. 01928_ Acquired 10 matter. 01993_ QZ-M8K(u) builds Twisted Machinery. 01997_ WK-ASK(u) builds Twisted Machinery. 01999_ QZ-M8K(u) builds Twisted Machinery. 02007_ Acquired 12 matter. 02009_ Acquired 9 matter. 02048_ WK-ASK(u) tweaks Twisted Machinery. 02061_ Sneak attack on WK-ASK(u). 02061_ Destroyed Wheel. 02229_ YA-3EV(R) destroyed. 02231_ Acquired 34 matter. 02234_ Acquired Sub. Laser. 02236_ Acquired 10 matter. 02247_ Triggered Piercing Trap. 02247_ Spikes shoot up from the floor. 02247_ Critical hit (Impale). IZ-YLC(R) emerges from concealment. 02347_ Ion Engine destroyed. Map ----- +----------------------------------------------------+ | ????????????????????????????????????#"""" #?? | | ?????????????????????????????????#### "" ##?? | | ?????????????????????????????????# ### ## ###??? | | ?????????????????????????????????# """## #????? | | ????????????????????????????????##""" # ##???? | | ??????????????????????????????### ## #???? | | ??????????????????????????????#"" """ ## ##???? | | ??????????????????????????????#"""" ## ##???? | | ??????????????????????????????##""""""""" #???? | | ???????????????????????????????#### " " #???? | | ??????????????????????????????????##""" ##??? | | ???????????????????????????????????###### #??? | | ????????????????????????????????????????## #??? | | ?????????????????????????????????????????## ##??? | | ?????????????????????????????????????????# ##???? | | ?????????????????????????##########????#### #???? | | ?????????#??????????????## ## ##### ## #???? | | ?????????# ????????????# ### ##???? | | ??????????# ?????####### & ## # #???? | | ??????????# #####;;;;" # #%# # ##???? | | ??????????# ;; ####= # ## #???? | | ?????????## #?# ## ###???? | | ?????????# ### ### # ##?????? | | ???? R ;##### ### #?????? | | ???? "" ;;##### ##?????? | | ????? ## #" ""#@## # #?????? | | ??????????# "##R R #### ####### | | ????????? #### ### ##??## ##" " # | | ??????? ## ??# #?####????# ## " "# | | ?????? ??# #??# ##?????????# # # | | ??????? ??? # ??# #??????????# # | | ????????? #### ? ??????????## " "# | | ?????????#####??? # ??????????### ####? | | ?????????????????# ???????????####???? | | ????????????????? ??????????????????? | | ????????????????? # ## ###??????????????????? | | ????????????????? ###?# ##????????????????????? | | ????????????????? #????# #?????????????????????? | | ????????????????# #?????##??????????????????????? | | ?????????????????????????????????????????????????? | | ?????????????????????????????????????????????????? | | ?????????????????????????????????????????????????? | | ?????????????????????????????????????????????????? | | ?????????????????????????????????????????????????? | | ?????????????????????????????????????????????????? | | ?????????????????????????????????????????????????? | | ?????????????????????????????????????????????????? | | ?????????????????????????????????????????????????? | | ?????????????????????????????????????????????????? | | ?????????????????????????????????????????????????? | +----------------------------------------------------+ Best States ------------- Heat Dissipation 25 Energy Generation 10 Energy Capacity 250 Matter Stores 305 Matter Capacity 350 Sight Range 18 Terrain Scan Density 10 Evasion (%) 40 Recoil Reduction 2 Item Schematics ----------------- Huge Storage Unit | -10/Materials | Hacked Robot Schematics ------------------ None Fabricated ------------ Nothing Alien Tech Used ----------------- None Achievements -------------- None Challenges ------------ None Game ------ Seed MagneticStructuralAirjet Manual? 0 Play Time 00:20:05 Cumulative 34.4 hours Start 2024.04.17 @ 16:17:08 End 2024.04.17 @ 16:35:25 Sessions 1 Manual Loads 0 Difficulty Rogue Special Mode None Game No. 24 Rogue 24 Adventurer 0 Explorer 0 Win Type - Total 0 Types 0/0/0/0/0/0/0/0/0 Lore% 25 Gallery% 31 Achievement% 25 Wizard Run 0 Options --------- Layout 1 ASCII 0 Keyboard 0 Movement Mouse Keybinds 0 Fullscreen 1 Font 24/Smallcaps Map View 50x35 Zoom Use 0% Tactical HUD 1 Map Filters NONE Filters NONE Steam 1 RUN: 93a2ace2-7da0-453a-8f46-6ebfe3a3e5bb